bitfinex/quotes_BTCUSD_20250314
["timestamp","ask_amount","ask_price","bid_price","bid_amount"]
[1741950871252,0.240058,83313.0,83308.0,0.243072]
[1741950871644,0.01882642,83312.0,83308.0,0.243072]
[1741950871850,0.01882642,83312.0,83306.0,0.252081]
[1741950872223,0.25888942,83312.0,83309.0,0.006]
[1741950872502,0.01882642,83312.0,83309.0,0.004]
[1741950872739,0.01882642,83312.0,83311.0,0.240064]
[1741950873107,0.240031,83323.0,83316.0,0.240049]
[1741950873296,0.252033,83325.0,83316.0,0.240049]
[1741950873452,0.240016,83328.0,83319.0,0.240041]
[1741950873453,0.012,83328.0,83319.0,0.240041]
[1741950873654,0.2730826,83330.0,83329.0,0.240012]
[1741950874013,0.8085093,83351.0,83332.0,0.252003]
[1741950874014,0.00029201,83333.0,83332.0,0.252003]
[1741950874159,0.00029201,83333.0,83326.0,0.240018]
[1741950874160,0.240013,83329.0,83322.0,0.142501]
[1741950874359,0.24002,83327.0,83322.0,0.1305]
[1741950874588,0.012001,83326.0,83322.0,0.1305]
[1741950874791,0.012001,83326.0,83319.0,0.2120551]
[1741950874792,0.240038,83322.0,83319.0,0.13644]
[1741950874991,0.240038,83321.0,83319.0,0.13644]
[1741950875227,0.252031,83323.0,83319.0,0.13644]
[1741950875404,0.24003,83323.0,83322.0,0.001]
[1741950875806,0.252031,83323.0,83322.0,0.001]
[1741950876007,0.252039,83320.0,83319.0,0.13644]
[1741950876255,0.252039,83320.0,83319.0,0.001]
[1741950877622,0.252039,83320.0,83312.0,0.252062]
[1741950877623,0.01882495,83320.0,83315.0,0.24005]
[1741950877830,0.25886395,83320.0,83319.0,0.002]
[1741950878656,0.25886395,83320.0,83319.0,0.001]
[1741950879068,0.27086495,83320.0,83319.0,0.001]
[1741950880651,0.27086495,83320.0,83319.0,0.003]
[1741950881784,0.64796495,83320.0,83319.0,0.003]
[1741950882781,0.64796495,83320.0,83319.0,0.002]
[1741950883632,0.252067,83311.0,83310.0,0.13644]
[1741950884602,0.27089333,83311.0,83310.0,0.13644]
[1741950885011,0.27089333,83311.0,83310.0,0.14044]
[1741950885592,0.01882633,83311.0,83310.0,0.14444]
[1741950885945,0.25889033,83311.0,83310.0,0.14444]
[1741950886145,0.25889033,83311.0,83310.0,0.008]
[1741950886989,0.27089333,83311.0,83310.0,0.008]
[1741950889436,0.57089333,83311.0,83310.0,0.008]
[1741950890929,0.58543418,83311.0,83310.0,0.008]
[1741950891139,0.64750785,83311.0,83310.0,0.008]
[1741950891299,0.78394785,83311.0,83310.0,0.008]
[1741950892112,0.78394785,83311.0,83309.0,0.0003386]
[1741950892113,0.56661085,83310.0,83309.0,0.0003386]
[1741950892319,0.64281085,83310.0,83309.0,0.0003386]
[1741950892663,0.77925085,83310.0,83309.0,0.0003386]
[1741950894326,1.19655085,83310.0,83309.0,0.0003386]
[1741950894526,1.21538132,83310.0,83309.0,0.0003386]
[1741950894939,1.21738132,83310.0,83309.0,6e-07]
[1741950895333,0.69612585,83305.0,83304.0,3.2105552]
[1741950895540,0.69612585,83305.0,83304.0,1.7143772]
[1741950895685,6.37665885,83305.0,83304.0,1.3449382]
[1741950895909,2.25492585,83305.0,83304.0,1.3449382]
[1741950897405,2.25792585,83305.0,83304.0,1.3449382]
[1741950897601,2.25492585,83305.0,83304.0,1.3449382]
[1741950898001,2.25992585,83305.0,83304.0,1.3449382]
[1741950898385,2.25992585,83305.0,83268.0,0.0484]
[1741950898386,0.3,83271.0,83268.0,0.03092945]
[1741950898591,0.3,83271.0,83268.0,0.03097034]
[1741950898794,0.54018,83271.0,83268.0,0.03097034]
[1741950899391,0.540185,83269.0,83268.0,4.089e-05]
[1741950899594,0.552194,83269.0,83268.0,4.089e-05]
[1741950900436,0.540185,83269.0,83268.0,4.089e-05]
[1741950900637,0.3,83269.0,83268.0,0.00104089]
[1741950900849,0.012008,83273.0,83268.0,4.089e-05]
[1741950900850,0.552182,83273.0,83268.0,4.089e-05]
[1741950901022,0.540174,83273.0,83268.0,4.089e-05]
[1741950901234,0.3,83273.0,83268.0,0.00104089]
[1741950901942,0.3,83274.0,83268.0,4.089e-05]
[1741950902965,0.240169,83275.0,83268.0,4.089e-05]
[1741950903164,0.540171,83274.0,83268.0,4.089e-05]
[1741950904072,0.56673485,83269.0,83268.0,4.089e-05]
[1741950907052,0.31454085,83269.0,83268.0,4.089e-05]
[1741950907298,0.55472585,83269.0,83268.0,4.089e-05]
[1741950907898,0.55472585,83269.0,83258.0,0.0475]
[1741950907899,0.3,83259.0,83258.0,0.04694089]
[1741950908233,0.540214,83259.0,83258.0,0.04734894]
[1741950909215,0.541214,83259.0,83258.0,0.04734894]
[1741950909419,0.541214,83259.0,83258.0,0.00040805]
[1741950909960,0.553224,83259.0,83258.0,0.00040805]
[1741950910561,0.554224,83259.0,83258.0,0.00040805]
[1741950912075,0.542214,83259.0,83258.0,0.00040805]
[1741950912489,0.002,83259.0,83258.0,0.00040805]
[1741950913817,0.242214,83259.0,83258.0,0.00040805]
[1741950914093,0.554224,83259.0,83258.0,0.00040805]
[1741950916314,0.553224,83259.0,83258.0,0.00040805]
[1741950916512,0.552224,83259.0,83258.0,0.00040805]
[1741950916718,0.3,83259.0,83258.0,0.00040805]
[1741950917100,0.540214,83259.0,83258.0,0.00040805]
[1741950917700,0.3,83259.0,83258.0,0.00040805]
[1741950920240,0.540214,83259.0,83258.0,0.00040805]
[1741950920535,0.552224,83259.0,83258.0,0.00040805]
[1741950921657,0.252224,83259.0,83258.0,0.00057745]
[1741950921850,0.2525628,83259.0,83258.0,0.00057745]
[1741950922988,0.0003388,83259.0,83258.0,0.00057745]
[1741950923159,0.2525628,83259.0,83258.0,0.00057745]
[1741950923752,0.2405528,83259.0,83258.0,0.00057745]
[1741950923942,0.5405528,83259.0,83258.0,0.00057745]
[1741950925139,0.3003388,83259.0,83258.0,0.00057745]
[1741950925758,0.5525628,83259.0,83258.0,0.00057745]
[1741950928915,0.69340365,83259.0,83258.0,0.00057745]
[1741950931603,0.64900365,83259.0,83258.0,0.00057745]
[1741950931756,0.56810365,83259.0,83258.0,0.00057745]
[1741950933594,0.56910365,83259.0,83258.0,0.00057745]
[1741950934107,0.57010365,83259.0,83258.0,0.00057745]
[1741950934308,0.56910365,83259.0,83258.0,0.00057745]
[1741950934611,0.57010365,83259.0,83258.0,0.00057745]
[1741950939266,0.98740365,83259.0,83258.0,0.00057745]
[1741950939475,1.06380365,83259.0,83258.0,4.5e-07]
[1741950940202,1.06280365,83259.0,83258.0,4.5e-07]
[1741950940402,1.06180365,83259.0,83258.0,4.5e-07]
[1741950940608,1.06080365,83259.0,83258.0,4.5e-07]
[1741950940808,1.06280365,83259.0,83258.0,4.5e-07]
[1741950941706,1.06580365,83259.0,83258.0,4.5e-07]
[1741950942016,1.06280365,83259.0,83258.0,4.5e-07]
[1741950942557,1.06580365,83259.0,83258.0,4.5e-07]
[1741950944603,1.06380365,83259.0,83258.0,4.5e-07]
[1741950945061,1.06880365,83259.0,83258.0,4.5e-07]
[1741950945446,1.06580365,83259.0,83258.0,4.5e-07]
[1741950945888,1.07080365,83259.0,83258.0,4.5e-07]
[1741950946303,0.9798628,83259.0,83258.0,4.5e-07]
[1741950946509,0.9748628,83259.0,83258.0,4.5e-07]
[1741950946769,0.9798628,83259.0,83258.0,4.5e-07]
[1741950947171,0.98940365,83259.0,83258.0,4.5e-07]
[1741950947374,0.99340365,83259.0,83258.0,4.5e-07]
[1741950947723,0.98940365,83259.0,83258.0,4.5e-07]
[1741950948725,1.06890365,83259.0,83258.0,4.5e-07]
[1741950948942,0.98440365,83259.0,83258.0,4.5e-07]
[1741950949334,0.98540365,83259.0,83258.0,4.5e-07]
[1741950957007,1.06720365,83259.0,83258.0,4.5e-07]
[1741950958998,1.06620365,83259.0,83258.0,4.5e-07]
[1741950959391,1.06720365,83259.0,83258.0,4.5e-07]
[1741950959871,1.06820365,83259.0,83258.0,4.5e-07]
[1741950960479,0.98640365,83259.0,83258.0,4.5e-07]
[1741950960679,1.12288365,83259.0,83258.0,4.5e-07]
[1741950971521,1.19898365,83259.0,83258.0,4.5e-07]
[1741950974068,1.12288365,83259.0,83258.0,4.5e-07]
[1741950974270,0.98640365,83259.0,83258.0,4.5e-07]
[1741950974441,1.12288365,83259.0,83258.0,4.5e-07]
[1741950977426,0.98640365,83259.0,83258.0,4.5e-07]
[1741950982793,1.05860365,83259.0,83258.0,4.5e-07]
[1741950983111,0.98640365,83259.0,83258.0,4.5e-07]
[1741950985930,0.76840365,83259.0,83258.0,4.5e-07]
[1741950986272,0.68640365,83259.0,83258.0,4.5e-07]
[1741950987031,0.6718628,83259.0,83258.0,4.5e-07]
[1741950987386,0.9718628,83259.0,83258.0,0.08060045]
[1741950987608,0.6718628,83259.0,83258.0,0.08060045]
[1741950987820,0.5545628,83259.0,83258.0,0.08060045]
[1741950988079,0.5525628,83259.0,83258.0,0.08060045]
[1741950988440,0.5535628,83259.0,83258.0,0.08060045]
[1741950988640,0.5535628,83259.0,83258.0,4.5e-07]
[1741950988995,0.56710365,83259.0,83258.0,4.5e-07]
[1741950989820,0.5669863,83259.0,83258.0,4.5e-07]
[1741950990959,0.55244545,83259.0,83258.0,4.5e-07]
[1741950991160,0.55244545,83259.0,83258.0,0.07640045]
[1741950997444,0.00022145,83259.0,83258.0,0.07640045]
[1741950997639,0.00022145,83259.0,83258.0,0.37472745]
[1741950997815,0.00022145,83259.0,83258.0,0.12250045]
[1741950998018,0.30022145,83259.0,83258.0,0.12250045]
[1741950998187,0.00022145,83259.0,83258.0,0.43742489]
[1741950998397,0.00022145,83259.0,83258.0,0.57386489]
[1741950999528,0.00022145,83259.0,83258.0,0.56185489]
[1741951000096,0.00022145,83259.0,83258.0,0.57386489]
[1741951000281,0.00022145,83259.0,83258.0,0.57486489]
[1741951000455,0.2402,83264.0,83260.0,0.24021]
[1741951000635,0.240205,83263.0,83261.0,0.10683139]
[1741951000840,0.240205,83263.0,83258.0,0.43742489]
[1741951000841,0.240212,83260.0,83258.0,0.12350045]
[1741951001047,0.252224,83259.0,83258.0,0.12350045]
[1741951001433,0.253224,83259.0,83258.0,0.12350045]
[1741951001715,0.553224,83259.0,83258.0,0.04610045]
[1741951002031,0.5525628,83259.0,83258.0,0.04910045]
[1741951003027,0.5525628,83259.0,83258.0,0.00300045]
[1741951003160,0.5525628,83259.0,83258.0,4.5e-07]
[1741951003560,0.5525628,83259.0,83258.0,0.00200045]
[1741951003561,0.5535628,83259.0,83258.0,0.00200045]
[1741951003765,0.5525628,83259.0,83258.0,4.5e-07]
[1741951004194,0.5525628,83259.0,83258.0,0.00200045]
[1741951005986,0.56710365,83259.0,83258.0,4.5e-07]
[1741951006204,0.56710365,83259.0,83240.0,0.124]
[1741951006205,0.252279,83241.0,83240.0,0.124]
[1741951006406,0.252279,83241.0,83240.0,0.12404409]
[1741951007451,0.552279,83241.0,83240.0,4.409e-05]
[1741951007632,0.553279,83241.0,83240.0,0.00204409]
[1741951008282,0.554279,83241.0,83240.0,0.00204409]
[1741951008617,0.553279,83241.0,83240.0,4.409e-05]
[1741951008816,0.552279,83241.0,83240.0,4.409e-05]
[1741951009278,0.55163967,83241.0,83240.0,4.409e-05]
[1741951010277,0.55263967,83241.0,83240.0,4.409e-05]
[1741951011697,0.56718052,83241.0,83240.0,4.409e-05]
[1741951013601,0.56618052,83241.0,83240.0,0.00021349]
[1741951013803,0.56918052,83241.0,83240.0,0.00021349]
[1741951015384,0.78662052,83241.0,83240.0,4.9e-07]
[1741951015585,2.86622052,83241.0,83240.0,4.9e-07]
[1741951015796,0.78662052,83241.0,83240.0,4.9e-07]
[1741951016538,0.70562052,83241.0,83240.0,4.9e-07]
[1741951017653,0.77794052,83241.0,83240.0,4.9e-07]
[1741951017889,0.70562052,83241.0,83240.0,4.9e-07]
[1741951018408,0.39453598,83241.0,83240.0,4.9e-07]
[1741951018657,0.64681498,83241.0,83240.0,4.9e-07]
[1741951019779,0.51037498,83241.0,83240.0,4.9e-07]
[1741951020534,0.255279,83241.0,83240.0,4.9e-07]
[1741951020724,0.555279,83241.0,83240.0,4.9e-07]
[1741951021123,0.56881985,83241.0,83240.0,4.9e-07]
[1741951021325,0.56681985,83241.0,83240.0,4.9e-07]
[1741951021559,0.56881985,83241.0,83240.0,4.9e-07]
[1741951021760,0.56781985,83241.0,83240.0,4.9e-07]
[1741951023142,0.56881985,83241.0,83240.0,4.9e-07]
[1741951023645,0.56781985,83241.0,83240.0,4.9e-07]
[1741951023859,0.56981985,83241.0,83240.0,4.9e-07]
[1741951032030,0.98711985,83241.0,83240.0,4.9e-07]
[1741951036012,0.552306,83232.0,83231.0,4.9e-07]
[1741951036284,0.56684685,83232.0,83231.0,0.0001233]
[1741951036487,0.6235597,83232.0,83231.0,0.0001233]
[1741951036633,0.56684685,83232.0,83231.0,0.0001233]
[1741951038112,0.98414685,83232.0,83231.0,3e-07]
[1741951039236,0.552324,83226.0,83225.0,9e-07]
[1741951039484,0.552324,83226.0,83225.0,4.518e-05]
[1741951041317,0.553324,83226.0,83225.0,4.518e-05]
[1741951041517,0.554324,83226.0,83225.0,4.518e-05]
[1741951043798,0.554324,83226.0,83225.0,1.8e-07]
[1741951044246,0.56886485,83226.0,83225.0,1.8e-07]
[1741951044454,0.64966485,83226.0,83225.0,1.8e-07]
[1741951044876,1.13928485,83226.0,83225.0,1.8e-07]
[1741951045085,1.33928485,83226.0,83225.0,1.8e-07]
[1741951045524,1.33828485,83226.0,83225.0,1.8e-07]
[1741951045913,1.12164485,83226.0,83225.0,1.8e-07]
[1741951046298,1.12064485,83226.0,83225.0,1.8e-07]
[1741951046703,1.12964485,83226.0,83225.0,1.8e-07]
[1741951047170,1.12464485,83226.0,83225.0,1.8e-07]
[1741951047344,1.12964485,83226.0,83225.0,1.8e-07]
[1741951050433,1.20804485,83226.0,83225.0,4.8e-07]
[1741951050838,1.25444485,83226.0,83225.0,4.8e-07]
[1741951051697,1.24844485,83226.0,83225.0,4.8e-07]
[1741951052271,1.24828476,83226.0,83225.0,4.8e-07]
[1741951052471,1.24528476,83226.0,83225.0,4.8e-07]
[1741951052869,1.32260476,83226.0,83225.0,4.8e-07]
[1741951053070,1.33160476,83226.0,83225.0,4.8e-07]
[1741951053875,2.09504476,83226.0,83225.0,4.8e-07]
[1741951054749,2.09004476,83226.0,83225.0,4.8e-07]
[1741951054980,1.95070391,83226.0,83225.0,4.8e-07]
[1741951055177,1.96524476,83226.0,83225.0,4.8e-07]
[1741951055380,2.02195761,83226.0,83225.0,4.8e-07]
[1741951055590,1.96524476,83226.0,83225.0,4.8e-07]
[1741951060709,2.04464476,83226.0,83225.0,4.8e-07]
[1741951062820,2.04498356,83226.0,83225.0,4.8e-07]
[1741951063376,2.04098356,83226.0,83225.0,4.8e-07]
[1741951063588,2.03598356,83226.0,83225.0,4.8e-07]
[1741951063784,2.04598356,83226.0,83225.0,4.8e-07]
[1741951063962,2.09018356,83226.0,83225.0,4.8e-07]
[1741951064369,2.09518356,83226.0,83225.0,4.8e-07]
[1741951064615,1.95870356,83226.0,83225.0,4.8e-07]
[1741951064945,2.09518356,83226.0,83225.0,4.8e-07]
[1741951065151,1.95370356,83226.0,83225.0,4.8e-07]
[1741951065366,2.04098356,83226.0,83225.0,4.8e-07]
[1741951065893,1.96158356,83226.0,83225.0,4.8e-07]
[1741951066095,1.95658356,83226.0,83225.0,4.8e-07]
[1741951066299,1.96158356,83226.0,83225.0,4.8e-07]
[1741951066541,1.96658356,83226.0,83225.0,4.8e-07]
[1741951066764,1.96158356,83226.0,83225.0,4.8e-07]
[1741951067116,1.96658356,83226.0,83225.0,4.8e-07]
[1741951067522,0.252366,83212.0,83211.0,0.02855005]
[1741951067686,0.552366,83212.0,83211.0,0.02859435]
[1741951068111,0.56690685,83212.0,83211.0,0.02859435]
[1741951068954,0.31454085,83212.0,83211.0,0.02859435]
[1741951069174,0.56690685,83212.0,83211.0,0.02859435]
[1741951069743,0.56890685,83212.0,83211.0,0.02859435]
[1741951069944,0.57190685,83212.0,83211.0,0.02859435]
[1741951071093,0.56690685,83212.0,83211.0,0.02859435]
[1741951071297,0.56790685,83212.0,83211.0,0.02859435]
[1741951071495,0.56990685,83212.0,83211.0,0.02859435]
[1741951072999,0.56990685,83212.0,83211.0,4.43e-05]
[1741951075232,0.56990685,83212.0,83211.0,0.0002137]
[1741951077073,0.56990685,83212.0,83211.0,7e-07]
[1741951084990,0.56990685,83212.0,83211.0,0.0457007]
[1741951085797,0.555366,83212.0,83211.0,0.0457007]
[1741951086170,0.552366,83212.0,83211.0,0.0457007]
[1741951086597,0.553366,83212.0,83211.0,0.0457007]
[1741951087662,0.552366,83212.0,83211.0,0.0457007]
[1741951087859,0.5527048,83212.0,83211.0,0.0457007]
[1741951089429,0.56724565,83212.0,83211.0,7e-07]
[1741951089843,0.5527048,83212.0,83211.0,0.0762007]
[1741951094391,0.5527048,83212.0,83211.0,7e-07]
[1741951097301,0.56724565,83212.0,83211.0,7e-07]
[1741951098311,0.5527048,83212.0,83211.0,7e-07]
[1741951098893,0.5557048,83212.0,83211.0,7e-07]
[1741951099463,0.5527048,83212.0,83211.0,7e-07]
[1741951099836,0.5547048,83212.0,83211.0,7e-07]
[1741951100205,0.5527048,83212.0,83211.0,7e-07]
[1741951103207,0.54649989,83212.0,83211.0,7e-07]
[1741951106485,0.2527048,83212.0,83211.0,7e-07]
[1741951108418,0.5527048,83212.0,83211.0,7e-07]
[1741951110237,0.56724565,83212.0,83211.0,7e-07]
[1741951112125,0.57324565,83212.0,83211.0,7e-07]
[1741951131413,0.2587048,83212.0,83211.0,7e-07]
[1741951131862,0.5587048,83212.0,83211.0,7e-07]
[1741951132286,0.5557048,83212.0,83211.0,7e-07]
[1741951132488,0.5537048,83212.0,83211.0,7e-07]
[1741951134497,0.56824565,83212.0,83211.0,7e-07]
[1741951135672,0.56724565,83212.0,83211.0,7e-07]
[1741951135886,0.56924565,83212.0,83211.0,7e-07]
[1741951136091,0.57024565,83212.0,83211.0,7e-07]
[1741951144473,0.012019,83198.0,83197.0,0.08]
[1741951144654,0.552409,83198.0,83197.0,0.106348]
[1741951146744,0.552409,83198.0,83197.0,0.08]
[1741951146961,0.552409,83198.0,83197.0,0.0801694]
[1741951148845,0.552409,83198.0,83197.0,0.0001694]
[1741951149648,0.0123558,83212.0,83204.0,0.0802]
[1741951149849,0.252383,83207.0,83205.0,0.00120172]
[1741951150055,0.240367,83206.0,83204.0,0.08822]
[1741951150246,0.240367,83206.0,83204.0,0.0802]
[1741951150446,0.24037,83205.0,83204.0,0.0802]
[1741951150693,0.252388,83205.0,83204.0,0.0802]
[1741951150895,0.54037,83205.0,83204.0,0.0802]
[1741951151344,0.552388,83205.0,83204.0,0.0802]
[1741951151952,0.552388,83205.0,83204.0,0.0822]
[1741951152159,0.552388,83205.0,83204.0,0.0802]
[1741951152569,0.552388,83205.0,83204.0,0.0822]
[1741951158043,0.3,83205.0,83204.0,0.0822]
[1741951158456,0.552388,83205.0,83204.0,0.0822]
[1741951158696,0.3,83205.0,83204.0,0.0823694]
[1741951158886,0.3,83205.0,83204.0,0.3227424]
[1741951159498,0.240329,83220.0,83211.0,0.288952]
[1741951159708,0.012015,83224.0,83211.0,0.380669]
[1741951159920,0.0003388,83226.0,83211.0,0.517109]
[1741951160700,0.0003388,83226.0,83211.0,0.52146763]
[1741951160912,0.0003388,83226.0,83211.0,0.54494241]
[1741951161142,0.0003388,83226.0,83211.0,0.67323312]
[1741951161461,0.0003388,83226.0,83211.0,0.67223312]
[1741951161686,0.0003388,83226.0,83225.0,0.252327]
[1741951161858,0.00046126,83226.0,83225.0,0.464967]
[1741951162058,0.00046126,83226.0,83225.0,0.5674306]
[1741951162645,0.00046126,83226.0,83225.0,0.5654306]
[1741951163166,0.25278526,83226.0,83225.0,0.0772]
[1741951163302,0.25278526,83226.0,83225.0,0.006]
[1741951163568,0.55278526,83226.0,83225.0,0.006]
[1741951164194,0.55378526,83226.0,83225.0,0.011]
[1741951164597,0.55278526,83226.0,83225.0,0.006]
[1741951165005,0.55278526,83226.0,83225.0,0.009]
[1741951165808,0.55278526,83226.0,83225.0,0.0895]
[1741951166082,0.31247626,83226.0,83225.0,0.0895]
[1741951166271,0.55278526,83226.0,83225.0,0.1303]
[1741951166480,0.55278526,83226.0,83225.0,0.003]
[1741951166782,0.55278526,83226.0,83225.0,0.006]
[1741951169558,0.15278526,83226.0,83225.0,0.006]
[1741951170005,0.16480026,83226.0,83225.0,0.006]
[1741951170174,0.16513906,83226.0,83225.0,0.006]
[1741951173313,0.46513906,83226.0,83225.0,0.006]
[1741951175013,0.16513906,83226.0,83225.0,0.006]
[1741951177325,0.46513906,83226.0,83225.0,0.006]
[1741951179089,0.3003388,83226.0,83225.0,0.1326]
[1741951179289,0.3003388,83226.0,83225.0,0.1482632]
[1741951179498,0.3003388,83226.0,83225.0,0.3885752]
[1741951179672,0.3123538,83226.0,83225.0,0.1482632]
[1741951180286,0.5526628,83226.0,83225.0,0.1482632]
[1741951181476,0.5526628,83226.0,83225.0,0.1327694]
[1741951184568,0.5526628,83226.0,83225.0,0.0061694]
[1741951184988,0.0003388,83226.0,83225.0,0.2584964]
[1741951185147,0.0003388,83226.0,83225.0,0.3393964]
[1741951185325,0.0003388,83226.0,83225.0,0.3884964]
[1741951185531,0.0003388,83226.0,83225.0,0.50845729]
[1741951185927,0.0003388,83226.0,83225.0,0.50545729]
[1741951186335,0.0013388,83226.0,83225.0,0.51045729]
[1741951186747,0.0003388,83226.0,83225.0,0.50545729]
[1741951186945,0.0003388,83226.0,83225.0,0.50245729]
[1741951187241,0.0023388,83226.0,83225.0,0.51245729]
[1741951187423,0.0013388,83226.0,83225.0,0.50745729]
[1741951187906,0.0023388,83226.0,83225.0,0.51245729]
[1741951188857,0.0023388,83226.0,83225.0,0.50044229]
[1741951189022,0.0013388,83226.0,83225.0,0.49544229]
[1741951189241,0.0013388,83226.0,83225.0,0.51345729]
[1741951189848,0.0013388,83226.0,83225.0,0.50144229]
[1741951190145,0.0013388,83226.0,83225.0,0.3814814]
[1741951190348,0.0013388,83226.0,83225.0,0.3934964]
[1741951192693,0.5536628,83226.0,83225.0,0.0111694]
[1741951193506,0.5536628,83226.0,83225.0,0.0051694]
[1741951193668,0.5526628,83226.0,83225.0,0.0001694]
[1741951193881,0.5526628,83226.0,83225.0,0.0071694]
[1741951194287,0.5526628,83226.0,83225.0,0.0001694]
[1741951194488,0.5526628,83226.0,83225.0,0.0041694]
[1741951195432,0.252348,83218.0,83216.0,0.0458]
[1741951195636,0.240335,83217.0,83216.0,0.0458]
[1741951196040,0.252351,83217.0,83216.0,0.0458]
[1741951196369,0.240329,83220.0,83216.0,0.057816]
[1741951196581,0.240323,83222.0,83218.0,0.012016]
[1741951196789,0.240324,83221.0,83218.0,0.24130196]
[1741951197015,0.240326,83220.0,83218.0,0.00097196]
[1741951197191,0.240321,83222.0,83219.0,0.05107323]
[1741951197366,0.012016,83222.0,83219.0,0.05107323]
[1741951197568,0.240326,83220.0,83219.0,0.05227472]
[1741951197753,0.252342,83220.0,83219.0,0.05007323]
[1741951199213,0.24033,83219.0,83218.0,0.005]
[1741951199415,0.252343,83220.0,83218.0,0.005]
[1741951199613,0.240329,83219.0,83216.0,0.286136]
[1741951200665,0.012015,83223.0,83216.0,0.286136]
[1741951200666,0.2406508,83226.0,83218.0,0.012016]
[1741951200830,0.2406478,83226.0,83221.0,0.012016]
[1741951201035,0.0003388,83226.0,83221.0,0.25354046]
[1741951201198,0.0003388,83226.0,83224.0,0.240314]
[1741951201425,0.240312,83225.0,83223.0,0.00120144]
[1741951201596,0.0003388,83226.0,83223.0,0.012015]
[1741951201795,0.0003388,83226.0,83225.0,0.333427]
[1741951201996,0.0003388,83226.0,83225.0,0.383327]
[1741951203526,0.0013388,83226.0,83225.0,0.394327]
[1741951203892,0.0013388,83226.0,83225.0,0.399327]
[1741951204091,0.0013388,83226.0,83225.0,0.51928789]
[1741951204291,0.0013388,83226.0,83225.0,0.54314694]
[1741951204534,0.17195194,83250.0,83245.0,0.240251]
[1741951204739,0.012009,83264.0,83254.0,0.012011]
[1741951204941,0.0501388,83274.0,83258.0,0.252227]
[1741951204942,0.252198,83268.0,83258.0,0.252227]
[1741951205110,0.00040768,83259.0,83258.0,0.30519529]
[1741951205294,0.00040768,83259.0,83258.0,0.05296829]
[1741951205495,0.24062168,83259.0,83258.0,0.05296829]
[1741951205738,0.00040768,83259.0,83258.0,0.29318529]
[1741951205951,0.00040768,83259.0,83258.0,0.05296829]
[1741951206121,0.00040768,83259.0,83258.0,0.29318529]
[1741951206302,0.00040768,83259.0,83258.0,0.29818529]
[1741951206840,0.00040768,83259.0,83258.0,0.30218529]
[1741951207040,0.00040768,83259.0,83258.0,0.31419529]
[1741951207244,0.00040768,83259.0,83258.0,0.44069529]
[1741951208502,0.00040768,83259.0,83258.0,0.43569529]
[1741951208677,0.00040768,83259.0,83258.0,0.44169529]
[1741951208901,0.00040768,83259.0,83258.0,0.43769529]
[1741951209184,0.00040768,83259.0,83258.0,0.44369529]
[1741951212947,0.00040768,83259.0,83258.0,0.44869529]
[1741951213363,0.00040768,83259.0,83258.0,0.45723614]
[1741951213706,0.3,83292.0,83280.0,0.252159]
[1741951213905,0.3,83292.0,83278.0,0.0751]
[1741951213906,0.01241455,83294.0,83289.0,0.240126]
[1741951214122,0.00040955,83294.0,83291.0,0.240121]
[1741951214324,0.00040955,83294.0,83290.0,0.252124]
[1741951214647,0.00040955,83294.0,83291.0,0.240021]
[1741951215016,0.00040955,83294.0,83290.0,0.012006]
[1741951215017,0.00040955,83294.0,83292.0,0.07563]
[1741951215221,0.00040955,83294.0,83293.0,0.012005]
[1741951215433,0.00040955,83294.0,83293.0,0.087105]
[1741951215629,0.00040955,83294.0,83293.0,0.223425]
[1741951215834,0.00040955,83294.0,83293.0,0.21142]
[1741951216045,0.00040955,83294.0,83293.0,0.3145629]
[1741951216450,0.00040955,83294.0,83293.0,0.3265679]
[1741951216593,0.00040955,83294.0,83293.0,0.3315679]
[1741951217170,0.00040955,83294.0,83293.0,0.3375679]
[1741951217372,0.00040955,83294.0,83293.0,0.3325679]
[1741951217812,0.00040955,83294.0,83293.0,0.3375679]
[1741951218038,0.00040955,83294.0,83293.0,0.3325679]
[1741951218239,0.00030953,83294.0,83293.0,0.3325679]
[1741951218380,0.00030953,83294.0,83293.0,0.3863679]
[1741951218583,5.3e-07,83294.0,83293.0,1.50766875]
[1741951218836,5.3e-07,83294.0,83293.0,1.51266875]
[1741951219424,3.3e-07,83296.0,83295.0,0.147205]
[1741951219627,7.408e-05,83296.0,83295.0,0.56836579]
[1741951219862,7.408e-05,83296.0,83295.0,0.56716589]
[1741951220229,7.408e-05,83296.0,83295.0,0.58170674]
[1741951220667,7.408e-05,83296.0,83295.0,0.53170674]
[1741951220891,7.408e-05,83296.0,83295.0,0.58770674]
[1741951221110,7.408e-05,83296.0,83295.0,0.40944589]
[1741951221314,7.408e-05,83296.0,83295.0,0.40344589]
[1741951222082,7.408e-05,83296.0,83295.0,0.51327589]
[1741951222284,7.408e-05,83296.0,83295.0,0.64951589]
[1741951222457,7.408e-05,83296.0,83295.0,0.64351589]
[1741951223299,7.408e-05,83296.0,83295.0,0.64351589]
[1741951223498,7.408e-05,83296.0,83295.0,0.65551589]
[1741951223698,7.408e-05,83296.0,83295.0,0.64951589]
[1741951224123,7.408e-05,83296.0,83295.0,0.65551589]
[1741951227891,7.408e-05,83296.0,83295.0,0.67005674]
[1741951229499,7.408e-05,83296.0,83295.0,0.58985674]
[1741951229904,7.408e-05,83296.0,83295.0,0.60193787]
[1741951231011,0.23694341,83320.0,83317.0,0.240046]
[1741951231656,0.240033,83322.0,83318.0,0.23942253]
[1741951231842,0.0001227,83321.0,83318.0,0.23942253]
[1741951232251,0.0001227,83321.0,83319.0,0.240038]
[1741951232454,0.240044,83318.0,83317.0,0.003]
[1741951232655,0.240044,83318.0,83317.0,0.0661352]
[1741951232970,0.240044,83318.0,83317.0,0.0691352]
[1741951233132,0.240044,83318.0,83317.0,0.0661352]
[1741951233342,0.240044,83318.0,83317.0,0.003]
[1741951233343,0.252046,83318.0,83317.0,0.003]
[1741951233551,0.012004,83299.0,83293.0,0.012005]
[1741951233710,0.012003,83306.0,83299.0,0.012004]
[1741951233910,0.240085,83304.0,83299.0,0.25330221]
[1741951234167,0.012004,83304.0,83297.0,0.012005]
[1741951234403,0.240084,83304.0,83301.0,0.240092]
[1741951234586,0.240084,83304.0,83302.0,0.02653023]
[1741951235494,0.240087,83303.0,83302.0,0.02653023]
[1741951236111,0.240087,83303.0,83302.0,0.03253023]
[1741951236283,0.240087,83303.0,83302.0,0.03853023]
[1741951236636,0.252084,83306.0,83302.0,0.27261823]
[1741951236786,0.240079,83306.0,83303.0,0.07888192]
[1741951237686,0.012002,83314.0,83305.0,0.012004]
[1741951237925,0.012003,83310.0,83306.0,0.00120023]
[1741951238257,0.240078,83306.0,83302.0,0.03853023]
[1741951238373,0.240082,83305.0,83302.0,0.02653023]
[1741951238580,0.320587,83303.0,83302.0,0.006]
[1741951238798,0.677591,83303.0,83302.0,0.006]
[1741951239014,0.240119,83292.0,83291.0,0.0003384]
[1741951239465,0.25212,83294.0,83291.0,0.0003384]
[1741951239466,0.012005,83294.0,83291.0,0.0003384]